bitfinex-derivatives/quotes_BTCF0:USTF0_20250422
["timestamp","ask_amount","ask_price","bid_price","bid_amount"]
[1745361824566,0.6483967,92824.0,92823.0,0.3608]
[1745361824766,0.75612871,92824.0,92823.0,0.3608]
[1745361826470,0.75712871,92824.0,92823.0,0.3608]
[1745361827471,0.1077229,92801.0,92790.0,0.36241625]
[1745361827769,0.3877229,92801.0,92790.0,0.36241625]
[1745361828369,0.1077345,92791.0,92790.0,0.00161625]
[1745361829279,0.1077438,92783.0,92782.0,0.00813904]
[1745361829484,0.107745,92782.0,92781.0,0.0001616]
[1745361829677,0.593845,92782.0,92781.0,0.0001616]
[1745361829874,0.70162501,92782.0,92781.0,0.0001616]
[1745361830071,0.70162501,92782.0,92780.0,6e-08]
[1745361830072,0.1077461,92781.0,92780.0,6e-08]
[1745361830372,0.3677461,92781.0,92780.0,6e-08]
[1745361830574,0.63372611,92781.0,92780.0,6e-08]
[1745361830968,0.1077589,92770.0,92757.0,0.36089601]
[1745361831169,0.3477589,92770.0,92769.0,0.17355952]
[1745361831377,0.4555549,92770.0,92769.0,0.17355952]
[1745361831677,0.1077729,92758.0,92757.0,0.2652765]
[1745361831878,0.0538937,92746.0,92745.0,0.3608]
[1745361832576,0.0538937,92746.0,92745.0,0.00809212]
[1745361832767,0.1077973,92737.0,92736.0,0.3608]
[1745361832974,0.10789331,92737.0,92736.0,0.00016169]
[1745361833174,0.1078042,92731.0,92730.0,0.17355952]
[1745361833476,0.3478042,92731.0,92730.0,0.17355952]
[1745361834072,0.4257042,92731.0,92730.0,0.17355952]
[1745361834378,0.4267042,92731.0,92730.0,0.18155952]
[1745361834767,0.4267042,92731.0,92730.0,0.18960155]
[1745361834974,0.4267042,92731.0,92730.0,0.19460155]
[1745361835476,0.4267042,92731.0,92730.0,0.19360155]
[1745361835679,0.4267042,92731.0,92730.0,0.02004203]
[1745361836072,0.18678712,92731.0,92730.0,0.12784743]
[1745361836276,0.00108292,92731.0,92730.0,0.12784743]
[1745361836581,0.0538921,92749.0,92730.0,0.26204203]
[1745361836881,0.1077845,92748.0,92747.0,0.1077853]
[1745361837077,0.0538914,92750.0,92749.0,0.1077833]
[1745361838077,0.0538914,92750.0,92749.0,0.2997833]
[1745361838283,0.0538914,92750.0,92749.0,0.192]
[1745361838478,0.0538914,92750.0,92749.0,0.193]
[1745361838680,0.0538914,92750.0,92749.0,0.195]
[1745361839878,0.0538914,92750.0,92749.0,0.194]
[1745361840075,0.0538914,92750.0,92749.0,0.197]
[1745361840380,0.0538914,92750.0,92749.0,0.005]
[1745361840782,0.1077856,92747.0,92746.0,0.0846]
[1745361841180,0.1077856,92747.0,92746.0,0.1647]
[1745361842283,0.1655,92752.0,92746.0,0.1647]
[1745361842474,0.00016169,92755.0,92753.0,0.1077785]
[1745361842680,0.00016169,92755.0,92754.0,0.1647]
[1745361843078,0.10793799,92755.0,92754.0,0.3567]
[1745361843283,0.10793799,92755.0,92754.0,0.2766]
[1745361843980,0.10793799,92755.0,92754.0,0.2796]
[1745361844181,0.10793799,92755.0,92754.0,0.0886]
[1745361844576,0.00016169,92755.0,92754.0,0.0886]
[1745361844979,0.00016169,92755.0,92754.0,0.1664]
[1745361845381,0.16276169,92755.0,92754.0,0.1664]
[1745361846288,0.16276169,92755.0,92754.0,0.1654]
[1745361846489,0.00016169,92755.0,92754.0,0.2751775]
[1745361846686,0.0764,92769.0,92761.0,0.0538845]
[1745361846887,0.0764,92769.0,92764.0,0.1077656]
[1745361847087,0.1841604,92769.0,92765.0,0.1594]
[1745361847488,0.0764,92769.0,92765.0,0.1594]
[1745361847689,0.4685479,92780.0,92765.0,0.1594]
[1745361847889,0.00016169,92776.0,92771.0,0.0528786]
[1745361848087,0.00016169,92776.0,92773.0,0.1077547]
[1745361848287,0.00016169,92776.0,92774.0,0.1594]
[1745361848689,0.1077531,92775.0,92774.0,0.1594]
[1745361849191,0.1077531,92775.0,92774.0,0.3514]
[1745361849391,0.1077531,92775.0,92774.0,0.3504]
[1745361849789,0.00016169,92776.0,92774.0,0.3504]
[1745361849983,0.00016169,92776.0,92774.0,0.3534]
[1745361850384,0.00016169,92776.0,92774.0,0.3584]
[1745361850893,0.46932,92807.0,92774.0,0.3554]
[1745361851088,0.1077366,92790.0,92784.0,0.107742]
[1745361851288,0.0538679,92790.0,92785.0,0.0833]
[1745361851493,0.1077461,92781.0,92780.0,0.3608]
[1745361851690,0.0538696,92787.0,92780.0,0.47682447]
[1745361852008,0.1077351,92791.0,92786.0,0.1077401]
[1745361852192,0.3608,92807.0,92790.0,0.4146674]
[1745361852397,0.1652,92806.0,92799.0,0.3608]
[1745361852695,0.1077229,92801.0,92800.0,0.0821]
[1745361852992,0.0538607,92803.0,92799.0,0.3608]
[1745361852993,0.1077241,92800.0,92799.0,0.3608]
[1745361853495,0.1077241,92800.0,92799.0,0.3628]
[1745361853991,0.1873241,92800.0,92799.0,0.3628]
[1745361854692,0.1873241,92800.0,92799.0,0.3658]
[1745361854897,0.1873241,92800.0,92799.0,0.005]
[1745361855197,0.4373241,92800.0,92799.0,0.005]
[1745361856192,0.4373241,92800.0,92799.0,0.004]
[1745361856893,0.4373241,92800.0,92799.0,0.005]
[1745361857597,0.1077345,92791.0,92790.0,0.00016169]
[1745361858593,0.2674345,92791.0,92790.0,0.00016169]
[1745361858990,0.0765,92791.0,92790.0,0.10789739]
[1745361859293,0.0538665,92793.0,92790.0,0.00216169]
[1745361859592,0.0807,92792.0,92791.0,0.0845]
[1745361859793,0.1633,92792.0,92791.0,0.0845]
[1745361860393,0.2710334,92792.0,92791.0,0.0845]
[1745361861085,0.2710334,92792.0,92791.0,0.0875]
[1745361861290,0.1633,92792.0,92791.0,0.1691]
[1745361861486,0.2710334,92792.0,92791.0,0.1691]
[1745361861695,0.2710334,92792.0,92791.0,0.003]
[1745361862293,0.1633,92792.0,92791.0,0.003]
[1745361862488,0.2710334,92792.0,92791.0,0.1626]
[1745361862688,0.0826,92792.0,92791.0,0.2713345]
[1745361862891,0.0761,92798.0,92791.0,0.1636]
[1745361863098,0.0761,92798.0,92791.0,0.3536]
[1745361863290,0.0755,92797.0,92791.0,0.3536]
[1745361863485,0.1077289,92796.0,92791.0,0.3536]
[1745361863695,0.1077289,92796.0,92792.0,0.1077326]
[1745361863995,0.1077289,92796.0,92791.0,0.3556]
[1745361864190,0.1077289,92796.0,92791.0,0.4623343]
[1745361864791,0.1077289,92796.0,92792.0,0.1077332]
[1745361865286,0.1077289,92796.0,92793.0,0.1537]
[1745361866096,0.1077289,92796.0,92793.0,0.3457]
[1745361866598,0.1864289,92796.0,92793.0,0.3457]
[1745361866898,0.1864289,92796.0,92793.0,0.3487]
[1745361867098,0.0812,92795.0,92793.0,0.3527]
[1745361867701,0.1889303,92795.0,92793.0,0.3527]
[1745361868100,0.0812,92795.0,92793.0,0.3527]
[1745361868301,0.1077311,92794.0,92793.0,0.3527]
[1745361868504,0.0797,92794.0,92793.0,0.3527]
[1745361868802,0.1874311,92794.0,92793.0,0.3527]
[1745361869004,0.2693311,92794.0,92793.0,0.2768]
[1745361869203,0.2693311,92794.0,92793.0,0.2738]
[1745361869406,0.2693311,92794.0,92793.0,0.2768]
[1745361871101,0.2693311,92794.0,92793.0,0.007]
[1745361871710,0.2693311,92794.0,92793.0,0.003]
[1745361872011,0.2693311,92794.0,92793.0,0.007]
[1745361872509,0.2693311,92794.0,92793.0,0.003]
[1745361872707,0.2693311,92794.0,92793.0,0.005]
[1745361872905,0.2693311,92794.0,92793.0,0.004]
[1745361873301,0.2693311,92794.0,92793.0,0.005]
[1745361875406,0.6370991,92794.0,92793.0,0.005]
[1745361875705,0.1077345,92791.0,92790.0,0.00016169]
[1745361875896,0.7385345,92791.0,92790.0,0.00016169]
[1745361876104,0.8463025,92791.0,92790.0,0.00016169]
[1745361876401,0.1077566,92772.0,92771.0,0.3608]
[1745361876601,0.1077566,92772.0,92771.0,0.0168392]
[1745361877202,0.1077659,92764.0,92761.0,0.3608]
[1745361877400,0.1077659,92764.0,92763.0,0.00957715]
[1745361877597,0.0538822,92766.0,92763.0,0.00957715]
[1745361877598,0.1589,92765.0,92763.0,0.00957715]
[1745361877799,0.1589,92765.0,92763.0,0.08847715]
[1745361878108,0.1077659,92764.0,92763.0,0.00957715]
[1745361878297,0.1077659,92764.0,92763.0,0.20157715]
[1745361878497,0.2666659,92764.0,92763.0,0.20157715]
[1745361879007,0.5566659,92764.0,92763.0,0.21841926]
[1745361879209,0.5566659,92764.0,92763.0,0.01257715]
[1745361879408,0.0538886,92755.0,92747.0,0.0789]
[1745361879612,0.1077845,92748.0,92747.0,0.4397]
[1745361879911,0.1077845,92748.0,92747.0,0.00812177]
[1745361880102,0.1078,92735.0,92733.0,0.35548455]
[1745361880306,0.2064922,92749.0,92742.0,0.1077908]
[1745361880500,0.0747,92749.0,92743.0,0.1569]
[1745361880800,0.12958443,92753.0,92744.0,0.01684438]
[1745361881002,0.1077868,92746.0,92745.0,0.01684438]
[1745361881308,0.0538931,92747.0,92743.0,0.2646903]
[1745361881506,0.1077891,92744.0,92743.0,0.2646903]
[1745361881709,0.1077926,92741.0,92740.0,0.3608]
[1745361881906,0.1077926,92741.0,92740.0,0.4425]
[1745361882415,0.0538956,92743.0,92742.0,0.1077915]
[1745361882607,0.1077915,92742.0,92741.0,0.0752]
[1745361882801,0.1077915,92742.0,92741.0,0.1569]
[1745361883104,0.1077915,92742.0,92741.0,0.3489]
[1745361883307,0.1077915,92742.0,92741.0,0.192]
[1745361883502,0.7485915,92742.0,92741.0,0.192]
[1745361883707,0.8288915,92742.0,92741.0,0.192]
[1745361884103,0.8288915,92742.0,92741.0,0.195]
[1745361884304,0.1077938,92740.0,92739.0,9e-08]
[1745361884505,0.3877938,92740.0,92739.0,9e-08]
[1745361885510,0.3877938,92740.0,92739.0,0.00300009]
[1745361885708,0.3877938,92740.0,92727.0,0.00539214]
[1745361885709,0.0539025,92731.0,92727.0,0.00539214]
[1745361886005,0.3608,92729.0,92702.0,0.4419]
[1745361886212,0.3608,92729.0,92717.0,0.192]
[1745361886213,0.0539098,92718.0,92717.0,0.192]
[1745361886409,0.1078196,92718.0,92717.0,0.192]
[1745361886609,0.1837196,92718.0,92717.0,0.192]
[1745361886807,0.1837196,92718.0,92717.0,0.20028775]
[1745361887209,0.1837196,92718.0,92717.0,0.00828775]
[1745361887413,0.1078298,92709.0,92708.0,0.00016178]
[1745361887613,0.49038443,92750.0,92708.0,0.36923416]
[1745361887816,0.001,92740.0,92726.0,0.0539048]
[1745361888113,0.001,92740.0,92739.0,0.3608]
[1745361888308,0.1087938,92740.0,92739.0,0.3608]
[1745361888503,0.1077938,92740.0,92739.0,0.3608]
[1745361888815,0.1077938,92740.0,92739.0,0.37254726]
[1745361889205,0.1107938,92740.0,92739.0,0.56554726]
[1745361889717,0.1107938,92740.0,92739.0,0.56654726]
[1745361890413,0.1107938,92740.0,92739.0,0.5548]
[1745361890815,0.1087938,92740.0,92739.0,0.5538]
[1745361892712,0.1087938,92740.0,92739.0,0.5548]
[1745361894815,0.1077938,92740.0,92739.0,0.5548]
[1745361895117,0.1077938,92740.0,92739.0,0.5558]
[1745361895617,0.1077938,92740.0,92739.0,0.7124]
[1745361896012,0.1077938,92740.0,92739.0,0.8201949]
[1745361896409,0.00016178,92749.0,92748.0,0.1077845]
[1745361896616,0.107776,92756.0,92753.0,0.0538888]
[1745361896820,0.053887,92757.0,92754.0,0.1566]
[1745361897012,0.1077758,92756.0,92754.0,0.1566]
[1745361897213,0.1077758,92756.0,92754.0,0.4563771]
[1745361897723,0.00016178,92764.0,92754.0,0.3486]
[1745361898018,0.0538835,92763.0,92757.0,0.3608]
[1745361898222,0.1077715,92760.0,92757.0,0.48047434]
[1745361898422,0.1077715,92760.0,92758.0,0.1495]
[1745361898723,0.1077715,92760.0,92758.0,0.1485]
[1745361899021,0.1077717,92759.0,92758.0,0.1485]
[1745361899328,0.05404518,92764.0,92758.0,0.4482727]
[1745361899510,0.0538835,92763.0,92758.0,0.4482727]
[1745361899710,0.0538835,92763.0,92758.0,0.4502727]
[1745361899916,0.1077702,92761.0,92758.0,0.4502727]
[1745361900114,0.08006178,92764.0,92758.0,0.34863161]
[1745361900321,0.08006178,92764.0,92760.0,0.0538852]
[1745361900519,0.00016178,92764.0,92763.0,0.1077671]
[1745361900713,0.0538706,92786.0,92772.0,0.0538778]
[1745361900917,0.0799,92779.0,92775.0,0.1077531]
[1745361901316,0.1077509,92777.0,92775.0,0.192]
[1745361901522,0.0799,92779.0,92775.0,0.2997531]
[1745361901826,0.1077514,92777.0,92775.0,0.192]
[1745361902025,0.112952,92776.0,92775.0,0.192]
[1745361902223,0.270152,92776.0,92775.0,0.192]
[1745361902425,0.270152,92776.0,92775.0,0.193]
[1745361902721,0.270152,92776.0,92775.0,0.194]
[1745361903118,0.270152,92776.0,92775.0,0.193]
[1745361903319,0.270152,92776.0,92775.0,0.195]
[1745361904723,0.270152,92776.0,92775.0,0.196]
[1745361905920,0.1077717,92759.0,92758.0,0.00813161]
[1745361906226,0.1077775,92754.0,92753.0,0.3608]
[1745361907328,0.1825775,92754.0,92753.0,0.3608]
[1745361908622,0.1845775,92754.0,92753.0,0.3608]
[1745361910621,0.1845775,92754.0,92753.0,0.36886911]
[1745361914718,0.1825775,92754.0,92753.0,0.36886911]
[1745361914922,0.1855775,92754.0,92753.0,0.36986911]
[1745361916619,0.1855775,92754.0,92753.0,0.00906911]
[1745361921030,0.1825775,92754.0,92753.0,0.00906911]
[1745361921235,0.1875775,92754.0,92753.0,0.00906911]
[1745361922432,0.1895775,92754.0,92753.0,0.00906911]
[1745361924634,0.1875775,92754.0,92753.0,0.00906911]
[1745361926329,0.1875775,92754.0,92753.0,0.00806911]
[1745361926532,0.1885775,92754.0,92753.0,0.001]
[1745361927128,0.107781,92751.0,92750.0,0.3608]
[1745361927637,0.0538963,92741.0,92732.0,0.3608]
[1745361927839,0.1077996,92735.0,92725.0,0.4372]
[1745361928134,0.39913773,92735.0,92734.0,4e-08]
[1745361928527,0.55783773,92735.0,92734.0,4e-08]
[1745361928733,0.5464996,92735.0,92734.0,4e-08]
[1745361929331,0.5464996,92735.0,92734.0,0.00200004]
[1745361929839,0.1078089,92727.0,92726.0,0.0744]
[1745361930838,0.2556089,92727.0,92726.0,0.0744]
[1745361931336,0.2566089,92727.0,92726.0,0.0794]
[1745361931548,0.2566089,92727.0,92726.0,0.08762492]
[1745361931734,0.2566089,92727.0,92726.0,0.09162492]
[1745361932846,0.2566089,92727.0,92726.0,0.01722492]
[1745361933442,0.0539027,92730.0,92726.0,0.01722492]
[1745361933443,0.1077989,92738.0,92726.0,0.81226892]
[1745361933739,0.3608,92750.0,92743.0,0.1077903]
[1745361934134,0.1077853,92748.0,92743.0,0.2997903]
[1745361934332,0.1077853,92748.0,92743.0,0.4510903]
[1745361934745,0.0538913,92750.0,92743.0,0.4510903]
[1745361934945,0.1077853,92748.0,92743.0,0.4510903]
[1745361935240,0.1077857,92747.0,92743.0,0.4530903]
[1745361935447,0.0538924,92748.0,92743.0,0.4530903]
[1745361935634,0.1077884,92745.0,92743.0,0.4530903]
[1745361935835,0.10795079,92744.0,92743.0,0.4530903]
[1745361936236,0.10795079,92744.0,92743.0,0.4510903]
[1745361936542,0.10795079,92744.0,92743.0,0.4530903]
[1745361936944,0.10895079,92744.0,92743.0,0.4570903]
[1745361937942,0.10895079,92744.0,92743.0,0.46848509]
[1745361938635,0.10895079,92744.0,92743.0,0.46748509]
[1745361939543,0.10795079,92744.0,92743.0,0.46448509]
[1745361939743,0.10895079,92744.0,92743.0,0.46748509]
[1745361940341,0.10795079,92744.0,92743.0,0.3453]
[1745361940647,0.10895079,92744.0,92743.0,0.4560903]
[1745361941845,0.10795079,92744.0,92743.0,0.4530903]
[1745361942059,0.0005,92749.0,92748.0,0.1077845]
[1745361942550,0.1077828,92750.0,92749.0,0.1616722]
[1745361942749,0.1077828,92750.0,92749.0,0.6756722]
[1745361942944,0.1077828,92750.0,92749.0,0.514]
[1745361943145,0.1077828,92750.0,92749.0,0.706]
[1745361943345,0.1077828,92750.0,92749.0,0.8137833]
[1745361943651,0.1077828,92750.0,92749.0,0.8147833]
[1745361945252,0.1077828,92750.0,92749.0,0.8137833]
[1745361945651,0.1077828,92750.0,92749.0,0.8147833]
[1745361945851,0.1077828,92750.0,92749.0,0.8157833]
[1745361946048,0.1077828,92750.0,92749.0,0.708]
[1745361946243,0.1077828,92750.0,92749.0,0.194]
[1745361946452,0.1087828,92750.0,92749.0,0.194]
[1745361946848,0.1087828,92750.0,92749.0,0.193]
[1745361947147,0.1077891,92744.0,92743.0,0.0797]
[1745361947952,0.1870891,92744.0,92743.0,0.0797]
[1745361948155,0.1870891,92744.0,92743.0,0.2717]
[1745361949053,0.1870891,92744.0,92743.0,0.2727]
[1745361949355,0.1870891,92744.0,92743.0,0.193]
[1745361949657,0.1880891,92744.0,92743.0,0.195]
[1745361950144,0.1880891,92744.0,92743.0,0.003]
[1745361950550,0.1078042,92731.0,92726.0,0.00822492]
[1745361951551,0.2643042,92731.0,92726.0,0.00822492]
[1745361951951,0.2643042,92731.0,92727.0,0.0771]
[1745361952347,0.2643042,92731.0,92730.0,0.00661749]
[1745361952348,0.2653042,92731.0,92730.0,0.00661749]
[1745361952542,0.2653042,92731.0,92730.0,0.01061749]
[1745361952943,0.2643042,92731.0,92730.0,0.00561749]
[1745361953150,0.2653042,92731.0,92730.0,0.01061749]
[1745361957256,0.5553042,92731.0,92730.0,0.01061749]
[1745361958161,0.6631442,92731.0,92726.0,0.00822492]
[1745361958464,0.1078228,92715.0,92707.0,0.18132]
[1745361958858,0.1078228,92715.0,92714.0,0.36875015]
[1745361959366,0.2636228,92715.0,92714.0,0.36875015]
[1745361959763,0.2646228,92715.0,92714.0,0.37675015]
[1745361959965,0.2646228,92715.0,92714.0,0.01595015]
[1745361960354,0.2646228,92715.0,92714.0,0.37675015]
[1745361960553,0.0539055,92726.0,92725.0,0.1078112]
[1745361960765,0.1078077,92729.0,92728.0,0.1078068]
[1745361960957,0.1078089,92727.0,92726.0,0.1889097]
[1745361961262,0.1078089,92727.0,92726.0,0.6385537]
[1745361961461,0.0778,92730.0,92729.0,0.1078066]
[1745361961766,0.0778,92730.0,92727.0,0.1078081]
[1745361961970,0.0539037,92729.0,92728.0,0.2596077]
[1745361962153,0.0778,92730.0,92729.0,0.1078066]
[1745361962358,0.0778,92730.0,92729.0,0.2661066]
[1745361962666,0.0788,92730.0,92729.0,0.2661066]
[1745361963061,0.1866057,92730.0,92729.0,0.1583]
[1745361963363,0.1866057,92730.0,92729.0,0.3503]
[1745361963758,0.001,92730.0,92729.0,0.4581066]
[1745361963964,0.0745,92737.0,92729.0,0.81894]
[1745361964168,0.0745,92737.0,92729.0,0.8189066]
[1745361964169,0.1078054,92730.0,92729.0,0.8189066]
[1745361964364,0.1078054,92730.0,92729.0,0.632]
[1745361964762,0.1078054,92730.0,92729.0,0.5558]
[1745361964962,0.2619054,92730.0,92729.0,0.5558]
[1745361965667,0.2619054,92730.0,92729.0,0.6636066]
[1745361965867,0.2619054,92730.0,92729.0,0.5558]
[1745361966865,0.2629054,92730.0,92729.0,0.5558]
[1745361970766,0.1088054,92730.0,92729.0,0.6636066]
[1745361971166,0.001,92730.0,92729.0,0.6636066]
[1745361971365,0.001,92730.0,92729.0,0.7714466]
[1745361971869,0.1088054,92730.0,92729.0,0.7714466]
[1745361972973,0.1088054,92730.0,92729.0,0.78276526]
[1745361975971,0.001,92730.0,92729.0,0.78276526]
[1745361976166,0.001,92730.0,92729.0,0.67492526]
[1745361977774,0.1088054,92730.0,92729.0,0.67492526]
[1745361978181,0.1088054,92730.0,92729.0,0.5558]
[1745361978874,0.1845054,92730.0,92729.0,0.5558]
[1745361979085,0.2620054,92730.0,92729.0,0.5558]
[1745361979274,0.2620054,92730.0,92729.0,0.71]
[1745361980174,0.2620054,92730.0,92729.0,0.8178066]
[1745361982467,0.2620054,92730.0,92729.0,0.71]
[1745361982673,0.2620054,92730.0,92729.0,0.6337]
[1745361983275,0.2620054,92730.0,92729.0,0.5558]
[1745361985968,0.2620054,92730.0,92729.0,0.6339]
[1745361986368,0.2620054,92730.0,92729.0,0.7417066]
[1745361987276,0.2620054,92730.0,92729.0,0.6339]
[1745361988675,0.2620054,92730.0,92729.0,0.5558]
[1745361989879,0.5520054,92730.0,92729.0,0.195]
[1745361990074,0.5520054,92730.0,92729.0,0.003]
[1745361992784,0.5510054,92730.0,92729.0,0.003]
[1745361992983,0.5510054,92730.0,92729.0,0.004]
[1745361992984,0.5560054,92730.0,92729.0,0.004]
[1745361993181,0.5560054,92730.0,92729.0,0.001]
[1745361993479,0.5590054,92730.0,92729.0,0.001]
[1745361993685,0.1078112,92725.0,92724.0,0.00016179]
[1745361994591,0.2685112,92725.0,92724.0,0.00016179]
[1745361994884,0.2705112,92725.0,92724.0,0.00016179]
[1745361995887,0.2735112,92725.0,92724.0,0.00116179]
[1745362002494,0.2705112,92725.0,92724.0,0.00016179]
[1745362002694,0.2755112,92725.0,92724.0,0.00016179]
[1745362003396,0.2775112,92725.0,92724.0,0.00016179]
[1745362005088,0.0005,92728.0,92724.0,0.24606789]
[1745362005290,0.1622131,92728.0,92727.0,0.1078089]
[1745362005491,0.1622131,92728.0,92727.0,0.1854089]
[1745362005692,0.1622131,92728.0,92727.0,0.2626089]
[1745362006095,0.1622131,92728.0,92727.0,0.4546089]
[1745362006294,0.1622131,92728.0,92727.0,0.3468]
[1745362006894,0.1632131,92728.0,92727.0,0.3478]
[1745362007491,0.1632131,92728.0,92727.0,0.4556089]
[1745362007691,0.1642131,92728.0,92727.0,0.4546089]
[1745362008294,0.1632131,92728.0,92727.0,0.4556089]
[1745362008496,0.1622131,92728.0,92727.0,0.4556089]
[1745362008799,0.1622131,92728.0,92727.0,0.4566089]
[1745362009397,0.1622131,92728.0,92727.0,0.4576089]
[1745362009790,0.1617131,92728.0,92727.0,0.4576089]
[1745362009997,0.1617131,92728.0,92727.0,0.4556089]
[1745362010190,0.1617131,92728.0,92727.0,0.4576089]
[1745362010389,0.1617131,92728.0,92727.0,0.4566089]
[1745362011485,0.1617131,92728.0,92727.0,0.4576089]
[1745362011691,0.1617131,92728.0,92727.0,0.4556089]
[1745362012702,0.1627131,92728.0,92727.0,0.4576089]
[1745362012999,0.1627131,92728.0,92727.0,0.3498]
[1745362013200,0.1627131,92728.0,92727.0,0.4576089]
[1745362013401,0.1627131,92728.0,92727.0,0.3498]
[1745362013699,0.1627131,92728.0,92727.0,0.195]
[1745362014101,0.2396131,92728.0,92727.0,0.003]
[1745362014290,0.1078112,92725.0,92724.0,0.00016179]
[1745362014490,0.3578112,92725.0,92724.0,0.00016179]
[1745362014694,0.46565921,92725.0,92724.0,0.00016179]
[1745362015894,0.46565921,92725.0,92724.0,0.00316179]
[1745362016101,0.3588112,92725.0,92724.0,0.00316179]
[1745362016691,0.3588112,92725.0,92724.0,0.00516179]
[1745362017291,0.3588112,92725.0,92724.0,0.00316179]
[1745362017497,0.3618112,92725.0,92724.0,0.00316179]
[1745362017699,0.3618112,92725.0,92724.0,0.00216179]
[1745362018692,0.3668112,92725.0,92724.0,0.00016179]
[1745362021798,0.1078228,92715.0,92710.0,0.3608]
[1745362021998,0.1078275,92711.0,92710.0,0.3608]
[1745362024203,0.1078345,92705.0,92704.0,0.0746]
[1745362024406,0.1078391,92701.0,92693.0,0.3608]
[1745362024709,0.1078438,92697.0,92693.0,0.3608]
[1745362025008,0.1078438,92697.0,92696.0,0.00964781]
[1745362025208,0.3978438,92697.0,92696.0,0.00964781]
[1745362025411,0.3978438,92697.0,92696.0,0.37044781]
[1745362025605,0.1078438,92697.0,92696.0,0.37044781]
[1745362025812,0.1088438,92697.0,92696.0,0.48129271]
[1745362026312,0.1088438,92697.0,92696.0,0.65558865]
[1745362026708,0.1088438,92697.0,92696.0,0.73618865]
[1745362026907,0.1088438,92697.0,92696.0,0.73918865]
[1745362027109,0.1088438,92697.0,92696.0,0.84703355]
[1745362028110,0.1078438,92697.0,92696.0,0.84403355]
[1745362028312,0.1088438,92697.0,92696.0,0.73918865]
[1745362028814,0.1078438,92697.0,92696.0,0.73618865]
[1745362029112,0.1088438,92697.0,92696.0,0.73918865]
[1745362029716,0.001,92697.0,92696.0,0.84703355]
[1745362029914,0.0539167,92706.0,92703.0,0.1617524]
[1745362030116,0.1078362,92704.0,92703.0,0.1617524]
[1745362030416,0.1078362,92704.0,92703.0,0.7145524]
[1745362030715,0.1617511,92710.0,92709.0,0.0539128]
[1745362030913,0.1617511,92710.0,92709.0,0.4147128]
[1745362031112,0.1617511,92710.0,92709.0,0.6057128]
[1745362031908,0.1627511,92710.0,92709.0,0.6067128]
[1745362033316,0.1627511,92710.0,92709.0,0.5538]
[1745362033513,0.2371511,92710.0,92709.0,0.5538]
[1745362033722,0.3121511,92710.0,92709.0,0.5538]
[1745362034220,0.3121511,92710.0,92709.0,0.3618]
[1745362036313,0.3121511,92710.0,92696.0,0.00964781]
[1745362036314,0.1078438,92697.0,92696.0,0.00964781]
[1745362037117,0.1851438,92697.0,92696.0,0.00964781]
[1745362037310,0.2600438,92697.0,92696.0,0.00964781]
[1745362037510,0.2610438,92697.0,92696.0,0.01464781]
[1745362039321,0.5010438,92697.0,92696.0,0.01764781]
[1745362040620,0.5010438,92697.0,92696.0,0.01664781]
[1745362045229,0.2610438,92697.0,92696.0,0.01664781]
[1745362046128,0.2610438,92697.0,92696.0,0.20864781]
[1745362046428,0.2610438,92697.0,92696.0,0.20664781]
[1745362047141,0.26388681,92697.0,92696.0,0.20364781]
[1745362047715,0.26088681,92697.0,92696.0,0.20564781]
[1745362048414,0.26388681,92697.0,92696.0,0.20464781]
[1745362048615,0.26288681,92697.0,92696.0,0.20164781]
[1745362049027,0.26288681,92697.0,92696.0,0.20264781]
[1745362049223,0.26288681,92697.0,92696.0,0.01064781]
[1745362050328,0.26088681,92697.0,92696.0,0.20564781]
[1745362050925,0.26588681,92697.0,92696.0,0.20264781]
[1745362051323,0.26288681,92697.0,92696.0,0.20264781]
[1745362051516,0.26288681,92697.0,92696.0,0.20202974]
[1745362051718,0.26088681,92697.0,92696.0,0.20402974]
[1745362052023,0.26388681,92697.0,92696.0,0.20302974]
[1745362053327,0.26388681,92697.0,92696.0,0.20102974]
[1745362053328,0.26588681,92697.0,92696.0,0.20102974]
[1745362054120,0.26288681,92697.0,92696.0,0.20002974]
[1745362054431,0.26288681,92697.0,92696.0,0.20102974]
[1745362054432,0.52688681,92697.0,92696.0,0.20102974]
[1745362054732,0.52388681,92697.0,92696.0,0.20202974]
[1745362055130,0.87844,92697.0,92677.0,0.00161852]
[1745362055429,0.1078694,92675.0,92666.0,0.3608]
[1745362055630,0.3678694,92675.0,92666.0,0.3608]
[1745362056232,0.1078857,92661.0,92655.0,0.3608]
[1745362056425,0.1078857,92661.0,92656.0,0.0724]
[1745362057026,0.1791857,92661.0,92656.0,0.0724]
[1745362057225,0.2513857,92661.0,92660.0,0.40982634]
[1745362057629,0.2513857,92661.0,92660.0,0.41775211]
[1745362057830,0.2523857,92661.0,92660.0,0.42075211]
[1745362058131,0.2523857,92661.0,92660.0,0.42575211]
[1745362058938,0.2523857,92661.0,92660.0,0.20292577]
[1745362059134,0.2523857,92661.0,92660.0,0.20592577]
[1745362059435,0.1078903,92657.0,92656.0,0.0724]
[1745362060138,0.1078903,92657.0,92656.0,0.2644]
[1745362060934,0.1088903,92657.0,92656.0,0.2654]
[1745362061534,0.1088903,92657.0,92656.0,0.2694]
[1745362061837,0.1088903,92657.0,92656.0,0.27763649]
[1745362062837,0.1088903,92657.0,92656.0,0.35113649]
[1745362063429,0.1088903,92657.0,92656.0,0.27763649]
[1745362064028,0.1088903,92657.0,92656.0,0.20523649]
[1745362064229,0.3788903,92657.0,92656.0,0.20523649]
[1745362064926,0.3788903,92657.0,92656.0,0.20323649]
[1745362065330,0.3778903,92657.0,92656.0,0.20223649]
[1745362065638,0.3788903,92657.0,92656.0,0.20423649]
[1745362066135,0.1078985,92650.0,92644.0,0.3608]
[1745362066337,0.3878985,92650.0,92644.0,0.3608]
[1745362066836,0.1079043,92645.0,92644.0,0.3608]
[1745362067044,0.3679043,92645.0,92644.0,0.3608]
[1745362067434,0.3679043,92645.0,92644.0,0.36886364]
[1745362067635,0.4448043,92645.0,92644.0,0.36886364]
[1745362068233,0.4448043,92645.0,92644.0,0.56086364]
[1745362069231,0.1858043,92645.0,92644.0,0.56286364]
[1745362070442,0.1858043,92645.0,92644.0,0.56786364]
[1745362071738,0.001,92645.0,92644.0,0.56786364]
[1745362071942,0.1079043,92645.0,92644.0,0.56786364]
[1745362072834,0.1079043,92645.0,92644.0,0.70816364]
[1745362074133,0.1079043,92645.0,92644.0,0.81606914]
[1745362074342,0.1079043,92645.0,92644.0,0.70816364]
[1745362075742,0.1089043,92645.0,92644.0,0.70616364]
[1745362075934,0.1089043,92645.0,92644.0,0.70316364]
[1745362076137,0.00016188,92659.0,92644.0,0.81110364]
[1745362076335,0.00016188,92659.0,92658.0,0.4686892]